bitfinex-derivatives/quotes_BTCF0:USTF0_20251215
["timestamp","ask_amount","ask_price","bid_price","bid_amount"]
[1765840675767,0.08932,86358.0,86357.0,0.8287212]
[1765840676267,0.08932,86358.0,86357.0,0.91032235]
[1765840676458,0.04564,86358.0,86357.0,0.91032235]
[1765840677652,0.08932,86358.0,86357.0,0.91032235]
[1765840678366,0.08932,86358.0,86357.0,0.8287212]
[1765840678666,0.04564,86358.0,86357.0,0.8287212]
[1765840679359,0.08932,86358.0,86357.0,0.8287212]
[1765840680365,0.08932,86358.0,86357.0,0.91158554]
[1765840680567,0.08932,86358.0,86357.0,0.8287212]
[1765840681269,0.04113365,86366.0,86365.0,0.08556]
[1765840681469,0.04113365,86366.0,86365.0,0.0971401]
[1765840681768,0.08481365,86366.0,86365.0,0.0971401]
[1765840682162,0.08481365,86366.0,86365.0,1.5971401]
[1765840682860,0.08581365,86366.0,86365.0,1.5971401]
[1765840683666,0.3723799,86367.0,86366.0,0.08154]
[1765840683965,0.3608,86367.0,86366.0,0.08154]
[1765840684165,0.39937,86367.0,86366.0,0.08154]
[1765840684371,0.44054,86367.0,86366.0,0.08154]
[1765840685866,0.44154,86367.0,86366.0,0.08154]
[1765840686074,0.44154,86367.0,86366.0,0.16430832]
[1765840688676,0.08074,86367.0,86366.0,0.16430832]
[1765840688876,0.08074,86367.0,86366.0,0.08154]
[1765840689068,0.08074,86367.0,86366.0,0.16427082]
[1765840689460,0.08074,86367.0,86366.0,0.08154]
[1765840689660,0.03957,86367.0,86366.0,0.44234]
[1765840689876,0.08074,86367.0,86366.0,0.44234]
[1765840690077,0.001,86367.0,86366.0,0.44234]
[1765840690277,0.08074,86367.0,86366.0,0.44234]
[1765840690667,0.001,86367.0,86366.0,0.44234]
[1765840690976,0.03957,86367.0,86366.0,0.44234]
[1765840691176,0.001,86367.0,86366.0,0.44234]
[1765840692083,0.001,86367.0,86366.0,0.5250258]
[1765840692267,0.001,86367.0,86366.0,0.44234]
[1765840692777,0.08074,86367.0,86366.0,0.44234]
[1765840692977,0.03957,86367.0,86366.0,0.44234]
[1765840693276,0.03957,86367.0,86366.0,0.52501431]
[1765840693676,0.001,86367.0,86366.0,0.52501431]
[1765840693877,0.001,86367.0,86366.0,0.44234]
[1765840694077,0.001,86367.0,86366.0,0.52501307]
[1765840694378,0.001,86367.0,86366.0,0.44234]
[1765840694675,0.001,86367.0,86366.0,0.52499631]
[1765840697075,0.08074,86367.0,86366.0,0.52499631]
[1765840698175,0.08074,86367.0,86366.0,0.40122]
[1765840698369,0.08074,86367.0,86366.0,1.08552]
[1765840700482,0.08074,86367.0,86366.0,0.3608]
[1765840700684,0.07974,86359.0,86358.0,0.3608]
[1765840700869,0.0913209,86359.0,86358.0,0.86892]
[1765840701076,0.0913209,86359.0,86358.0,1.8608]
[1765840701880,0.0913209,86359.0,86358.0,1.8618]
[1765840702281,0.0913209,86359.0,86358.0,0.36048415]
[1765840702282,0.4913209,86359.0,86358.0,0.36048415]
[1765840702781,0.4913209,86359.0,86358.0,1.86148415]
[1765840703480,0.0913209,86359.0,86358.0,1.86148415]
[1765840704875,0.0913209,86359.0,86358.0,1.87306515]
[1765840705281,0.0913209,86359.0,86358.0,2.59786515]
[1765840705877,0.07974,86359.0,86358.0,2.59786515]
[1765840707481,0.03857,86359.0,86358.0,2.59786515]
[1765840707792,0.0913204,86363.0,86362.0,0.0931205]
[1765840708286,0.0913204,86363.0,86362.0,0.08154]
[1765840708680,0.0115796,86369.0,86367.0,0.04042]
[1765840708984,0.0913192,86372.0,86371.0,0.08154]
[1765840709184,0.0913192,86372.0,86371.0,0.80638]
[1765840710789,0.0923192,86372.0,86371.0,0.80638]
[1765840721691,0.0923192,86372.0,86371.0,0.8179593]
[1765840722289,0.001,86372.0,86371.0,0.9085084]
[1765840722994,0.0115789,86374.0,86373.0,0.120799]
[1765840724180,0.0115786,86377.0,86374.0,0.10922]
[1765840724691,0.0115782,86380.0,86374.0,0.10922]
[1765840726087,0.00117365,86375.0,86374.0,0.10922]
[1765840727199,0.00117365,86375.0,86374.0,0.19187631]
[1765840727599,0.3608,86384.0,86383.0,0.1207977]
[1765840727799,0.3608,86384.0,86383.0,0.8455577]
[1765840728701,0.3628,86384.0,86383.0,0.8455577]
[1765840729201,0.3638,86384.0,86383.0,0.8455577]
[1765840729603,0.3638,86384.0,86383.0,0.85826322]
[1765840730000,0.11831,86376.0,86375.0,0.00017365]
[1765840730192,0.1298909,86359.0,86350.0,0.08265631]
[1765840730386,0.1298909,86359.0,86346.0,0.08265631]
[1765840730796,0.1298909,86359.0,86354.0,0.72504]
[1765840731102,0.1298909,86359.0,86356.0,0.01265941]
[1765840731292,0.1298909,86359.0,86358.0,1.86248415]
[1765840732205,0.1298909,86359.0,86358.0,1.86148415]
[1765840733903,0.1298909,86359.0,86358.0,2.58680415]
[1765840737295,0.1298909,86359.0,86358.0,1.14232415]
[1765840740004,0.1298909,86359.0,86358.0,0.47070415]
[1765840741509,0.1298909,86359.0,86358.0,0.41700415]
[1765840741906,0.1298909,86359.0,86358.0,0.47070415]
[1765840742911,0.0115809,86359.0,86358.0,0.47070415]
[1765840744007,0.0634409,86359.0,86358.0,0.47070415]
[1765840744206,0.1175209,86359.0,86358.0,0.47070415]
[1765840745420,0.0115809,86359.0,86358.0,0.48228515]
[1765840745822,0.01175345,86367.0,86366.0,0.10203]
[1765840746018,0.01175345,86367.0,86366.0,0.82727]
[1765840748128,0.01175345,86367.0,86366.0,0.10303]
[1765840748329,0.01175345,86367.0,86366.0,0.82831]
[1765840749723,0.01175345,86367.0,86366.0,0.82731]
[1765840750319,0.01175345,86367.0,86366.0,0.82831]
[1765840750929,0.01175345,86367.0,86366.0,0.82823]
[1765840753224,0.01175345,86367.0,86366.0,2.32823]
[1765840753629,0.01175345,86367.0,86366.0,2.33981]
[1765840753829,0.00017365,86367.0,86366.0,2.33981]
[1765840755228,0.01175345,86367.0,86366.0,2.33981]
[1765840756825,0.01175345,86367.0,86366.0,2.32823]
[1765840757824,0.11769345,86367.0,86366.0,2.32823]
[1765840760325,0.11769345,86367.0,86366.0,2.33981]
[1765840760733,0.01175345,86367.0,86366.0,2.33981]
[1765840761127,0.00017365,86367.0,86366.0,2.33981]
[1765840761430,0.3723776,86384.0,86383.0,0.10203]
[1765840761628,0.4783176,86384.0,86383.0,0.82707]
[1765840762226,0.1175188,86375.0,86374.0,0.1136088]
[1765840762424,0.1175188,86375.0,86374.0,0.8386088]
[1765840763132,0.1175188,86375.0,86374.0,0.10203]
[1765840763330,0.1474888,86375.0,86374.0,0.10203]
[1765840763524,0.1474888,86375.0,86374.0,0.82703]
[1765840764135,0.1484888,86375.0,86374.0,0.82703]
[1765840765038,0.1484888,86375.0,86374.0,0.82699]
[1765840765234,0.1484888,86375.0,86374.0,0.10203]
[1765840765538,0.1484888,86375.0,86374.0,0.82699]
[1765840765738,0.1474888,86375.0,86374.0,0.82699]
[1765840765939,0.1484888,86375.0,86374.0,0.82699]
[1765840771643,0.04956,86367.0,86366.0,1.50017365]
[1765840771841,0.1094398,86367.0,86366.0,2.22501365]
[1765840772447,0.1094398,86367.0,86366.0,2.22505365]
[1765840773139,0.1094398,86367.0,86366.0,2.22605365]
[1765840774538,0.1094398,86367.0,86366.0,2.22505365]
[1765840780049,0.0115798,86367.0,86366.0,2.22505365]
[1765840780955,0.1073398,86367.0,86366.0,2.22505365]
[1765840781145,0.1073398,86367.0,86366.0,1.50017365]
[1765840781343,0.1073398,86367.0,86366.0,2.22597365]
[1765840782455,0.1073398,86367.0,86366.0,2.22497365]
[1765840783148,0.0115798,86367.0,86366.0,2.22497365]
[1765840783748,0.23477916,86376.0,86375.0,0.09688]
[1765840784053,0.1073386,86376.0,86375.0,0.09688]
[1765840784756,0.1073398,86367.0,86366.0,1.50117365]
[1765840785150,0.1073398,86367.0,86366.0,1.50017365]
[1765840787455,0.0115798,86367.0,86366.0,1.50017365]
[1765840790458,0.0115798,86367.0,86366.0,1.50117365]
[1765840794964,0.0115798,86367.0,86366.0,1.50017365]
[1765840796768,0.0115798,86367.0,86366.0,1.50117365]
[1765840797661,0.0576798,86367.0,86366.0,1.50117365]
[1765840797863,0.1073398,86367.0,86366.0,2.22597365]
[1765840798362,0.0576798,86367.0,86366.0,2.22597365]
[1765840798864,0.0115798,86367.0,86366.0,2.22597365]
[1765840800169,0.0115796,86372.0,86371.0,0.108459]
[1765840800462,0.0115796,86372.0,86371.0,0.833259]
[1765840800764,0.0115796,86372.0,86371.0,0.82168]
[1765840801164,0.0115796,86372.0,86371.0,0.8332593]
[1765840801366,0.1073396,86372.0,86371.0,0.82168]
[1765840801564,0.0586796,86372.0,86371.0,0.82168]
[1765840802267,0.0576796,86372.0,86371.0,0.82168]
[1765840802463,0.0586796,86372.0,86371.0,0.82168]
[1765840803667,0.1083396,86372.0,86371.0,0.82168]
[1765840804568,0.1073396,86372.0,86371.0,0.82168]
[1765840804763,0.1083396,86372.0,86371.0,0.82168]
[1765840805359,0.1073396,86372.0,86371.0,0.82168]
[1765840805554,0.1083396,86372.0,86371.0,0.82168]
[1765840807872,0.1073396,86372.0,86371.0,0.82168]
[1765840808173,0.1083396,86372.0,86371.0,0.82168]
[1765840808670,0.1073396,86372.0,86371.0,0.82168]
[1765840808869,0.1083396,86372.0,86371.0,0.82168]
[1765840809264,0.0586796,86372.0,86371.0,0.82168]
[1765840809574,0.1024596,86372.0,86371.0,0.82164]
[1765840810268,0.1024596,86372.0,86371.0,0.09688]
[1765840810666,0.1014596,86372.0,86371.0,0.09688]
[1765840810969,0.1024596,86372.0,86371.0,0.09688]
[1765840811470,0.1014596,86372.0,86371.0,0.82164]
[1765840811666,0.1024596,86372.0,86371.0,0.82164]
[1765840813372,0.1301696,86372.0,86371.0,0.09688]
[1765840813577,0.1301696,86372.0,86371.0,0.82164]
[1765840813779,0.1301696,86372.0,86371.0,0.09688]
[1765840814772,0.1301696,86372.0,86366.0,1.50017365]
[1765840814773,0.1011198,86367.0,86366.0,1.50017365]
[1765840815077,0.1011198,86367.0,86366.0,0.09185365]
[1765840815467,0.1011198,86367.0,86366.0,1.59185365]
[1765840815976,0.1011198,86367.0,86366.0,1.59285365]
[1765840818178,0.1011198,86367.0,86366.0,1.59185365]
[1765840828983,0.1011209,86359.0,86358.0,0.35948415]
[1765840829488,0.1011209,86359.0,86358.0,0.45116415]
[1765840829489,0.12749409,86359.0,86358.0,0.45116415]
[1765840829983,0.12749409,86359.0,86358.0,0.40558415]
[1765840830184,0.12749409,86359.0,86358.0,0.40658415]
[1765840830388,0.12749409,86359.0,86358.0,0.40758415]
[1765840830985,0.12749409,86359.0,86358.0,0.45316415]
[1765840831789,0.08371409,86359.0,86358.0,0.45316415]
[1765840831987,0.0115809,86359.0,86358.0,0.45316415]
[1765840832888,0.0115806,86362.0,86361.0,0.0940303]
[1765840833893,0.0115806,86362.0,86361.0,0.08245]
[1765840834091,0.0115806,86362.0,86361.0,0.08345]
[1765840834283,0.0969606,86362.0,86361.0,0.001]
[1765840834487,0.0969606,86362.0,86330.0,0.02379]
[1765840834488,0.0969631,86343.0,86330.0,0.02379]
[1765840834790,0.0969647,86331.0,86330.0,0.06464]
[1765840835090,0.0969647,86331.0,86330.0,1.69244]
[1765840835587,0.0969647,86331.0,86330.0,1.60624]
[1765840835791,0.0969647,86331.0,86322.0,0.00017365]
[1765840835792,0.0969657,86323.0,86322.0,0.00017365]
[1765840835994,0.0969657,86323.0,86322.0,0.08262365]
[1765840836195,0.0909657,86323.0,86322.0,0.08262365]
[1765840836784,0.08538,86323.0,86322.0,1.58262365]
[1765840836981,0.0969657,86323.0,86322.0,1.58262365]
[1765840837489,0.0969657,86323.0,86322.0,1.58562365]
[1765840837685,0.0969657,86323.0,86322.0,0.006]
[1765840837886,0.0969663,86319.0,86318.0,0.08257849]
[1765840838487,0.0949663,86319.0,86318.0,0.08257849]
[1765840838695,0.0949663,86319.0,86318.0,1.58257849]
[1765840838998,0.0115882,86305.0,86304.0,0.01221457]
[1765840839197,0.0939682,86305.0,86304.0,0.08245]
[1765840839495,0.0909682,86305.0,86304.0,0.08245]
[1765840839884,0.04886164,86305.0,86304.0,1.58245]
[1765840840085,0.00572164,86305.0,86304.0,1.58245]
[1765840840388,0.00572164,86305.0,86304.0,1.58645]
[1765840840993,0.00572164,86305.0,86304.0,1.58945]
[1765840841791,0.04886164,86305.0,86304.0,1.58945]
[1765840842290,0.04886164,86305.0,86304.0,1.58745]
[1765840842595,0.04886164,86305.0,86304.0,1.58545]
[1765840843695,0.00572164,86305.0,86304.0,1.58545]
[1765840844095,0.00572164,86305.0,86304.0,1.60924]
[1765840845195,0.00572164,86305.0,86304.0,1.58545]
[1765840846093,0.04796164,86305.0,86298.0,0.00231756]
[1765840846286,0.096969,86299.0,86298.0,0.08476756]
[1765840846889,0.095969,86299.0,86298.0,0.08476756]
[1765840847295,0.095969,86299.0,86298.0,0.08676756]
[1765840848994,0.095969,86299.0,86298.0,0.08476756]
[1765840855905,0.095969,86299.0,86266.0,8.55e-05]
[1765840855906,0.02526,86290.0,86266.0,8.55e-05]
[1765840856104,0.0959733,86267.0,86266.0,0.0825355]
[1765840856299,0.09607295,86267.0,86266.0,0.0825355]
[1765840856498,0.09607295,86267.0,86266.0,1.5825355]
[1765840857403,0.0969743,86259.0,86258.0,0.08476864]
[1765840857703,0.04314,86249.0,86232.0,0.02379]
[1765840857905,0.08555388,86249.0,86248.0,0.08245]
[1765840858406,0.08555388,86249.0,86248.0,1.58245]
[1765840859100,0.08555388,86249.0,86220.0,0.06539]
[1765840859101,0.0115994,86221.0,86220.0,0.06539]
[1765840859306,0.0115994,86221.0,86220.0,0.83196]
[1765840859496,0.0115994,86221.0,86220.0,2.33196]
[1765840859696,0.0115994,86221.0,86220.0,2.73196]
[1765840859896,0.0115994,86221.0,86220.0,2.743996]
[1765840860300,0.0115994,86221.0,86220.0,2.745996]
[1765840861010,0.01173027,86221.0,86220.0,2.745996]
[1765840861307,0.01173027,86221.0,86220.0,2.346156]
[1765840861808,0.01173027,86221.0,86220.0,2.323366]
[1765840863409,0.01173027,86221.0,86220.0,2.31133]
[1765840865800,0.19414027,86221.0,86220.0,1.58545]
[1765840866106,0.37793027,86221.0,86220.0,1.58545]
[1765840866508,0.01173027,86221.0,86220.0,1.58545]
[1765840867213,0.37793027,86221.0,86220.0,1.5446]
[1765840868510,0.37893027,86221.0,86220.0,1.5436]
[1765840869415,0.19514027,86221.0,86220.0,1.5416]
[1765840869614,0.37893027,86221.0,86220.0,1.5416]
[1765840869802,0.01273027,86221.0,86220.0,1.5416]
[1765840870204,0.11689,86212.0,86208.0,8.481e-05]
[1765840870408,0.3778051,86179.0,86178.0,0.16905079]
[1765840870614,0.3778056,86176.0,86175.0,0.16673]
[1765840870920,0.3778056,86176.0,86175.0,1.77801]
[1765840871621,0.37695062,86176.0,86175.0,1.77801]
[1765840872219,0.37895062,86176.0,86175.0,1.77801]
[1765840872422,0.01075062,86176.0,86175.0,1.77801]
[1765840872612,0.19316062,86176.0,86175.0,1.77801]
[1765840873220,0.37695062,86176.0,86175.0,1.77801]
[1765840873517,0.37695062,86176.0,86175.0,2.39413]
[1765840874218,0.37695062,86176.0,86175.0,1.66673]
[1765840874419,0.37695062,86176.0,86175.0,2.39417]
[1765840874917,0.0116087,86152.0,86151.0,0.19751]
[1765840875120,0.01170739,86152.0,86151.0,1.76071]
[1765840875423,0.01170739,86152.0,86151.0,0.92499]
[1765840875716,0.12859739,86152.0,86151.0,2.37563]
[1765840875942,0.12759739,86152.0,86151.0,3.87563]
[1765840876216,0.31000739,86152.0,86151.0,1.69751]
[1765840876419,0.12759739,86152.0,86151.0,1.69751]
[1765840876721,0.13259739,86152.0,86151.0,2.42607]
[1765840877022,0.01570739,86152.0,86151.0,2.42607]
[1765840877320,0.01770739,86152.0,86151.0,3.87671]
[1765840877713,0.11706409,86160.0,86159.0,0.38847]
[1765840877714,0.00017409,86160.0,86159.0,0.38847]
[1765840878021,4.09e-06,86160.0,86159.0,1.11611]
[1765840878720,0.005123,86160.0,86159.0,1.11711]
[1765840879107,0.0116057,86175.0,86174.0,0.38847]
[1765840879313,0.0116057,86175.0,86174.0,1.11619]
[1765840880106,0.01169373,86175.0,86174.0,1.11619]
[1765840880620,0.01469373,86175.0,86174.0,1.11619]
[1765840881216,0.00017409,86183.0,86177.0,0.38847]
[1765840881217,0.0116053,86178.0,86177.0,0.38847]
[1765840881615,0.3778053,86178.0,86177.0,1.11623]
[1765840881820,0.3778053,86178.0,86177.0,0.38847]
[1765840882314,0.3778053,86178.0,86177.0,0.70639]
[1765840882923,0.3808053,86178.0,86177.0,0.70639]
[1765840883123,0.3838053,86178.0,86177.0,0.70639]
[1765840883820,0.0176053,86178.0,86177.0,0.70639]
[1765840885125,0.0156053,86178.0,86177.0,0.70639]
[1765840885626,0.0146053,86178.0,86177.0,0.70639]
[1765840885821,0.0136053,86178.0,86177.0,0.70639]
[1765840886021,0.0156053,86178.0,86177.0,0.70639]
[1765840886629,0.0136053,86178.0,86177.0,0.70639]
[1765840886928,0.0156053,86178.0,86177.0,0.70639]
[1765840887629,0.0156053,86178.0,86177.0,1.11619]
[1765840888727,0.00017409,86183.0,86182.0,0.4000747]
[1765840889523,0.00017409,86183.0,86182.0,0.38847]
[1765840890525,4.09e-06,86183.0,86182.0,0.38847]
[1765840891231,4.09e-06,86183.0,86182.0,0.38947]
[1765840892324,0.0116044,86185.0,86184.0,0.38674]
[1765840892835,0.00017409,86191.0,86190.0,0.38393]
[1765840893129,0.01177759,86191.0,86190.0,1.1232536]
[1765840894025,0.01277759,86191.0,86190.0,1.1232536]
[1765840894220,0.01277759,86191.0,86190.0,1.11165]
[1765840894633,0.01377759,86191.0,86190.0,1.11165]
[1765840895124,0.01277759,86191.0,86190.0,1.11165]
[1765840896635,0.00117409,86191.0,86190.0,1.11165]
[1765840896830,4.09e-06,86191.0,86190.0,0.72772]
[1765840898030,4.09e-06,86191.0,86190.0,0.72872]
[1765840898630,0.0116034,86192.0,86190.0,0.7403235]
[1765840898837,0.0116034,86192.0,86191.0,0.42565]
[1765840900334,0.0126034,86192.0,86191.0,0.42565]
[1765840900837,0.0126034,86192.0,86191.0,2.60413]
[1765840903634,0.001,86192.0,86191.0,2.60413]
[1765840904832,0.001,86192.0,86191.0,2.60513]
[1765840905337,0.0126033,86192.0,86191.0,2.60413]
[1765840905536,0.0126033,86192.0,86191.0,2.60513]
[1765840906338,0.0126033,86192.0,86191.0,2.53929]
[1765840907332,0.0126033,86192.0,86191.0,2.53829]
[1765840907538,0.0126033,86192.0,86191.0,2.53929]
[1765840908040,0.001,86192.0,86191.0,2.53929]
[1765840908435,0.00017409,86199.0,86198.0,0.32174]
[1765840908635,0.00017409,86199.0,86198.0,1.0605825]
[1765840909844,0.00217409,86199.0,86198.0,1.0605825]
[1765840911043,0.00217409,86199.0,86198.0,1.07289806]
[1765840911837,0.00117409,86199.0,86198.0,1.07289806]
[1765840912147,0.00117409,86199.0,86198.0,1.07389806]
[1765840917043,0.00117409,86199.0,86198.0,1.78585556]
[1765840917044,0.57337409,86199.0,86198.0,1.78585556]
[1765840917246,0.57337409,86199.0,86198.0,0.33505556]
[1765840917449,0.57337409,86199.0,86198.0,2.03749556]
[1765840918749,0.00117409,86199.0,86198.0,2.03749556]
[1765840919136,0.28781409,86199.0,86198.0,2.03749556]
[1765840919749,0.57337409,86199.0,86198.0,2.03749556]
[1765840920246,0.57337409,86199.0,86198.0,0.32274]
[1765840920642,0.57337409,86199.0,86198.0,0.56418]
[1765840920842,0.57337409,86199.0,86198.0,0.40324]
[1765840921241,0.57337409,86199.0,86198.0,0.72792]
[1765840921739,0.57337409,86199.0,86198.0,0.99465]
[1765840922055,0.57337409,86199.0,86198.0,0.99461]
[1765840924255,0.57337409,86199.0,86198.0,1.0062125]
[1765840924554,0.57337409,86199.0,86198.0,0.99461]
[1765840925052,0.00117409,86199.0,86198.0,0.99461]
[1765840926355,0.00117409,86199.0,86198.0,2.44545]
[1765840929952,0.6768188,86226.0,86225.0,0.23445]
[1765840930148,0.6768188,86226.0,86225.0,0.96125]
[1765840930655,0.15161,86208.0,86207.0,0.23445]
[1765840930863,0.51361,86208.0,86207.0,1.78144]
[1765840931358,0.15161,86214.0,86213.0,0.52132]
[1765840931747,0.01177409,86216.0,86215.0,0.52132]
[1765840931954,0.01177409,86216.0,86215.0,1.24844]
[1765840932255,0.00017399,86216.0,86215.0,1.24844]
[1765840933250,0.0115975,86236.0,86235.0,0.52132]
[1765840933558,0.2778175,86236.0,86235.0,1.24844]
[1765840933753,0.5252075,86236.0,86235.0,1.24844]
[1765840934255,0.5312075,86236.0,86235.0,1.24844]
[1765840935460,0.5352075,86236.0,86235.0,1.24844]
[1765840935971,0.5252075,86236.0,86235.0,1.24844]
[1765840936263,0.5272075,86236.0,86235.0,1.24844]
[1765840936459,0.5282075,86236.0,86235.0,1.24844]
[1765840936757,0.5262075,86236.0,86235.0,1.24844]
[1765840936950,0.5282075,86236.0,86235.0,1.24844]
[1765840937456,0.2808175,86236.0,86235.0,1.24844]
[1765840938157,0.003,86236.0,86235.0,1.24844]
[1765840939251,0.00017399,86244.0,86243.0,0.52132]
[1765840939557,0.52752314,86258.0,86257.0,0.52132]
[1765840939865,0.52752314,86258.0,86257.0,1.2484]
[1765840941769,0.5252053,86252.0,86251.0,0.53345412]
[1765840941957,0.5252053,86252.0,86251.0,1.26045412]
[1765840942855,0.5292053,86252.0,86251.0,1.26045412]
[1765840944167,0.5322053,86252.0,86251.0,1.26045412]
[1765840946268,0.5322053,86252.0,86251.0,0.53345412]
[1765840946463,0.5322053,86252.0,86251.0,0.89617412]
[1765840948364,0.0185953,86252.0,86251.0,0.89617412]
[1765840948669,0.00231864,86258.0,86257.0,0.5303246]
[1765840950669,0.00231864,86258.0,86257.0,0.5323246]
[1765840951053,0.00231864,86258.0,86257.0,0.5333246]
[1765840951257,0.00231864,86258.0,86257.0,0.5313246]
[1765840951459,0.00231864,86258.0,86257.0,0.5333246]
[1765840951655,0.00031864,86258.0,86257.0,0.5323246]
[1765840951855,0.00031864,86258.0,86257.0,0.5313246]
[1765840952163,0.00031864,86258.0,86257.0,0.5333246]
[1765840952564,0.00031864,86258.0,86257.0,0.5343246]
[1765840952775,0.26226788,86266.0,86265.0,0.50401]
[1765840952975,0.26226788,86266.0,86265.0,1.23077]
[1765840953574,0.26226788,86266.0,86265.0,1.2423635]
[1765840954169,0.26226788,86266.0,86265.0,1.2433635]
[1765840954572,0.26226788,86266.0,86265.0,1.23177]
[1765840955471,0.00011448,86266.0,86265.0,1.23177]
[1765840955667,0.01170788,86266.0,86265.0,1.23177]
[1765840955873,0.01270788,86266.0,86265.0,1.23177]
[1765840956172,0.00111448,86266.0,86265.0,1.23177]
[1765840957772,0.00011448,86266.0,86265.0,1.23077]
[1765840957966,0.00011448,86266.0,86265.0,1.23177]
[1765840965987,0.00011448,86266.0,86265.0,2.68149]
[1765840968280,0.49961448,86266.0,86265.0,1.23125]
[1765840969876,0.49961448,86266.0,86265.0,1.23025]
[1765840971177,0.50061448,86266.0,86265.0,1.23025]
[1765840971686,0.50061448,86266.0,86265.0,0.50401]
[1765840971876,0.49961448,86266.0,86265.0,1.23021]
[1765840972080,0.50061448,86266.0,86265.0,1.23021]
[1765840973391,0.49961448,86266.0,86265.0,1.23021]
[1765840973590,0.50061448,86266.0,86265.0,1.23021]
[1765840973891,0.50061448,86266.0,86265.0,1.2418035]
[1765840974282,0.49961448,86266.0,86265.0,1.2418035]
[1765840974589,0.50061448,86266.0,86265.0,1.2418035]
[1765840975090,0.49961448,86266.0,86265.0,1.23021]
[1765840976882,0.49961448,86266.0,86265.0,1.2418035]
[1765840977082,0.49961448,86266.0,86265.0,1.23021]
[1765840977286,0.50061448,86266.0,86265.0,1.23021]
[1765840977888,0.49961448,86266.0,86265.0,1.23021]
[1765840978189,0.50061448,86266.0,86265.0,1.23021]
[1765840980098,0.49961448,86266.0,86265.0,1.23021]
[1765840981803,0.49961448,86266.0,86265.0,0.50401]
[1765840982000,0.49961448,86266.0,86265.0,1.22997]
[1765840982998,0.49961448,86266.0,86265.0,1.2415635]
[1765840986908,0.49961448,86266.0,86265.0,1.22997]
[1765840991012,0.50061448,86266.0,86265.0,1.22997]
[1765840992519,0.22972448,86266.0,86265.0,1.22997]
[1765840992815,0.45042448,86266.0,86265.0,1.22997]
[1765840999019,0.45042448,86266.0,86265.0,1.22989]
[1765841004518,0.00111448,86266.0,86265.0,1.22989]
[1765841004819,0.45042448,86266.0,86265.0,1.22989]
[1765841007221,0.45042448,86266.0,86265.0,0.9728]
[1765841007517,0.45042448,86266.0,86251.0,0.17514412]
[1765841007518,0.4609053,86252.0,86251.0,0.17514412]
[1765841007717,0.4609053,86252.0,86251.0,1.06360912]
[1765841009618,0.4609053,86252.0,86251.0,0.33772912]
[1765841009822,0.4609053,86252.0,86251.0,1.06360912]
[1765841011024,0.4619053,86252.0,86251.0,1.06360912]
[1765841011625,0.4609053,86252.0,86251.0,1.06360912]
[1765841013421,0.0115953,86252.0,86251.0,1.06360912]
[1765841013622,0.14615,86259.0,86258.0,0.33661]
[1765841013821,0.0115943,86259.0,86258.0,1.06253]
[1765841014126,0.4589943,86259.0,86258.0,1.06253]
[1765841014715,0.4589943,86259.0,86258.0,1.06353]
[1765841015320,0.4589943,86259.0,86258.0,1.06253]
[1765841015721,0.0115943,86259.0,86258.0,1.06253]
[1765841016327,0.2289743,86259.0,86258.0,1.06253]
[1765841016626,0.4599943,86259.0,86258.0,1.06253]
[1765841017724,0.0125943,86259.0,86258.0,1.06253]
[1765841017918,0.2299743,86259.0,86258.0,1.06253]
[1765841018620,0.4599943,86259.0,86258.0,1.06253]
[1765841020829,0.0125943,86259.0,86258.0,1.06253]
[1765841021418,0.4599943,86259.0,86258.0,1.06253]
[1765841031035,0.4599943,86259.0,86258.0,0.33661]
[1765841031232,0.4599943,86259.0,86258.0,0.61757]
[1765841034331,0.4599943,86259.0,86258.0,1.06253]
[1765841036033,0.4599943,86259.0,86258.0,0.33661]
[1765841036329,0.4599943,86259.0,86258.0,1.06253]
[1765841044436,0.4599943,86259.0,86258.0,0.16825]
[1765841044750,0.4352255,86250.0,86249.0,0.00017399]
[1765841045037,0.5562469,86240.0,86239.0,0.2341]
[1765841045243,0.5562469,86240.0,86239.0,0.97196212]
[1765841046235,0.5562469,86240.0,86239.0,0.95998]
[1765841046736,0.5572469,86240.0,86239.0,0.95998]
[1765841047737,0.5582469,86240.0,86239.0,0.95998]
[1765841048345,0.5572469,86240.0,86239.0,0.95998]
[1765841048535,0.5592469,86240.0,86239.0,0.95998]
[1765841049050,0.5592469,86240.0,86239.0,0.96002]
[1765841050046,0.5592469,86240.0,86239.0,0.2341]
[1765841050446,0.5592469,86240.0,86239.0,0.41302]
[1765841050947,0.5592469,86240.0,86239.0,0.2341]
[1765841051138,0.5592469,86240.0,86239.0,0.96006]
[1765841052140,0.5592469,86240.0,86239.0,0.93679]
[1765841052745,0.5592469,86240.0,86239.0,0.21083]
[1765841052947,0.5592469,86240.0,86239.0,0.36727]
[1765841053237,0.5592469,86240.0,86239.0,0.93679]
[1765841054553,0.5592469,86240.0,86239.0,0.21083]
[1765841054751,0.5592469,86240.0,86239.0,0.93679]
[1765841054938,0.5592469,86240.0,86239.0,0.21083]
[1765841055143,0.5592469,86240.0,86239.0,0.37315]
[1765841055339,0.5592469,86240.0,86239.0,0.93679]
[1765841055543,0.5592469,86240.0,86239.0,0.21083]
[1765841055742,0.5592469,86240.0,86239.0,0.93679]
[1765841057144,0.5592469,86240.0,86239.0,0.83134]
[1765841057555,0.5592469,86240.0,86239.0,0.10538]
[1765841057751,0.5592469,86240.0,86239.0,0.83138]
[1765841057956,0.5592469,86240.0,86239.0,0.92917]
[1765841064460,0.5592469,86240.0,86239.0,0.726]
[1765841064862,0.5592469,86240.0,86231.0,0.00017388]
[1765841064863,0.556248,86232.0,86231.0,0.17284388]
[1765841065052,0.556248,86232.0,86231.0,0.88328388]
[1765841065756,0.556248,86232.0,86231.0,0.89884388]
[1765841066552,0.557248,86232.0,86231.0,0.89884388]
[1765841066947,0.557248,86232.0,86231.0,0.17284388]
[1765841067862,0.4352297,86219.0,86212.0,0.06229782]
[1765841068064,0.4352297,86219.0,86209.0,0.12336]
[1765841068065,0.4352309,86210.0,86209.0,0.12336]
[1765841068369,0.4352309,86210.0,86178.0,0.00232079]
[1765841068370,0.4352309,86210.0,86198.0,0.0617428]
[1765841068371,0.4352324,86199.0,86198.0,0.0617428]
[1765841068548,0.4352324,86199.0,86198.0,0.0001028]
[1765841068753,0.4352329,86195.0,86194.0,0.06164]
[1765841068948,0.12102,86196.0,86190.0,0.15082399]
[1765841068949,0.4342335,86191.0,86190.0,0.15082399]
[1765841069259,0.4322335,86191.0,86190.0,0.15082399]
[1765841069764,0.43232292,86191.0,86190.0,0.15082399]
[1765841071654,0.43232292,86191.0,86190.0,0.07646399]